bitfinex-derivatives/quotes_BTCF0:USTF0_20250609
["timestamp","ask_amount","ask_price","bid_price","bid_amount"]
[1749492483871,0.7573498,108380.0,108370.0,0.96210336]
[1749492484176,0.7577498,108380.0,108370.0,0.96210336]
[1749492484369,0.7577498,108380.0,108370.0,0.7511023]
[1749492484370,0.7573498,108380.0,108370.0,0.7511023]
[1749492484770,0.7577498,108380.0,108370.0,0.3903023]
[1749492484966,0.7577498,108380.0,108370.0,0.50514726]
[1749492485169,0.7577498,108380.0,108370.0,0.7511023]
[1749492489275,0.96875086,108380.0,108370.0,0.7511023]
[1749492490573,0.2309498,108380.0,108370.0,0.7511023]
[1749492490779,0.7577098,108380.0,108370.0,0.7511023]
[1749492502290,0.96871086,108380.0,108370.0,0.7511023]
[1749492503777,0.7577098,108380.0,108370.0,0.7511023]
[1749492504786,0.2309498,108380.0,108370.0,0.7511023]
[1749492504978,0.7576698,108380.0,108370.0,0.7511023]
[1749492511083,0.7576698,108380.0,108370.0,0.96210336]
[1749492511084,0.7115606,108380.0,108370.0,0.96210336]
[1749492511892,0.7115206,108380.0,108370.0,0.96210336]
[1749492513694,0.7115206,108380.0,108370.0,0.7511023]
[1749492513890,2.2115206,108380.0,108370.0,0.7511023]
[1749492514892,2.2115206,108380.0,108370.0,0.7931723]
[1749492519105,2.42252166,108380.0,108370.0,0.7931723]
[1749492520003,2.2115206,108380.0,108370.0,0.7931723]
[1749492524205,2.2115206,108380.0,108370.0,0.8245723]
[1749492524412,1.7852006,108380.0,108370.0,0.8245723]
[1749492524610,2.2114806,108380.0,108370.0,0.8245723]
[1749492525704,2.2114806,108380.0,108370.0,1.03557336]
[1749492526215,2.2114806,108380.0,108370.0,0.8245723]
[1749492527415,2.2114806,108380.0,108370.0,0.7931723]
[1749492528618,2.2431806,108380.0,108370.0,0.7931723]
[1749492528817,2.2738806,108380.0,108370.0,0.7931723]
[1749492529219,2.48486405,108380.0,108370.0,1.00415575]
[1749492532923,2.48486405,108380.0,108370.0,0.97275575]
[1749492533221,2.48486405,108380.0,108370.0,0.7617723]
[1749492535323,1.95822405,108380.0,108370.0,0.7617723]
[1749492535525,2.48478405,108380.0,108370.0,0.7617723]
[1749492536627,2.6957675,108380.0,108370.0,0.7304723]
[1749492538425,2.6957675,108380.0,108370.0,0.3696723]
[1749492539124,1.55817341,108380.0,108370.0,0.48471445]
[1749492539321,1.19737341,108380.0,108370.0,0.34155985]
[1749492539625,1.23765125,108380.0,108370.0,0.34155985]
[1749492540517,1.17225125,108380.0,108370.0,0.2265181]
[1749492540721,1.23765125,108380.0,108370.0,0.2265181]
[1749492540920,0.71109125,108380.0,108370.0,0.2265181]
[1749492541223,1.23765125,108380.0,108370.0,0.2265181]
[1749492541420,0.71109125,108380.0,108370.0,0.43750155]
[1749492541620,1.0266678,108380.0,108370.0,0.43750155]
[1749492541921,0.5001078,108380.0,108370.0,0.83050155]
[1749492542227,1.0265878,108380.0,108370.0,0.83050155]
[1749492542427,1.0261878,108380.0,108370.0,0.83050155]
[1749492542724,1.0265878,108380.0,108370.0,0.83050155]
[1749492543527,1.0265878,108380.0,108370.0,0.86080155]
[1749492543825,0.96258189,108380.0,108370.0,0.86080155]
[1749492544421,0.96218189,108380.0,108370.0,0.86080155]
[1749492545016,0.92190405,108380.0,108370.0,0.9758433]
[1749492545325,0.92230405,108380.0,108370.0,1.1189979]
[1749492545724,0.39582405,108380.0,108370.0,1.1235979]
[1749492545926,0.39582405,108380.0,108370.0,1.1374379]
[1749492546121,0.39582405,108380.0,108370.0,1.02239615]
[1749492546122,0.92230405,108380.0,108370.0,1.02239615]
[1749492546728,0.1848406,108380.0,108370.0,1.02239615]
[1749492546928,0.52648,108380.0,108370.0,1.16072375]
[1749492547129,0.7113111,108380.0,108370.0,1.16072375]
[1749492547329,0.0004,108380.0,108370.0,1.16072375]
[1749492547531,0.52688,108380.0,108370.0,1.16072375]
[1749492548729,0.7113111,108380.0,108370.0,1.16072375]
[1749492549827,0.0004,108380.0,108370.0,1.16072375]
[1749492550029,0.10068,108380.0,108370.0,1.16072375]
[1749492550229,0.7112711,108380.0,108370.0,1.16072375]
[1749492550540,0.7108711,108380.0,108370.0,1.16072375]
[1749492550728,0.7112711,108380.0,108370.0,1.16072375]
[1749492550927,0.92225455,108380.0,108370.0,1.16072375]
[1749492551634,0.92225455,108380.0,108370.0,1.21261375]
[1749492552133,0.7112711,108380.0,108370.0,1.21261375]
[1749492552435,0.52644,108380.0,108370.0,1.21261375]
[1749492552736,0.52684,108380.0,108370.0,1.21261375]
[1749492553429,2.02684,108380.0,108370.0,1.21261375]
[1749492557636,2.02684,108380.0,108370.0,1.27013662]
[1749492557834,2.02684,108380.0,108370.0,0.90933662]
[1749492558042,2.02684,108380.0,108370.0,1.63093662]
[1749492558231,1.5004,108380.0,108370.0,1.63093662]
[1749492558531,2.0268,108380.0,108370.0,1.63093662]
[1749492560040,1.92648,108380.0,108370.0,1.63093662]
[1749492565541,1.5004,108380.0,108370.0,1.63093662]
[1749492565731,1.92644,108380.0,108370.0,1.98542591]
[1749492565935,1.92604,108380.0,108370.0,1.78474844]
[1749492566135,1.92644,108380.0,108370.0,1.78474844]
[1749492566741,1.92644,108380.0,108370.0,1.57376499]
[1749492566942,1.92644,108380.0,108370.0,1.54506906]
[1749492570438,1.92644,108380.0,108370.0,1.43025915]
[1749492571546,1.92644,108380.0,108370.0,1.63093662]
[1749492573837,1.9264,108380.0,108370.0,1.63093662]
[1749492574649,2.1108311,108380.0,108370.0,1.63093662]
[1749492575043,1.9264,108380.0,108370.0,1.63093662]
[1749492577749,1.9264,108380.0,108370.0,1.41995317]
[1749492578050,1.9264,108380.0,108370.0,1.63093662]
[1749492578247,1.5004,108380.0,108370.0,1.63093662]
[1749492578449,1.9264,108380.0,108370.0,1.98563023]
[1749492578654,1.9264,108380.0,108370.0,1.84192007]
[1749492578852,1.9264,108380.0,108370.0,1.63093662]
[1749492579542,1.926,108380.0,108370.0,1.63093662]
[1749492580048,0.14047037,108400.0,108390.0,0.184414]
[1749492580345,0.60334424,108400.0,108390.0,1.11699745]
[1749492580553,2.10334424,108400.0,108390.0,1.38168548]
[1749492580747,2.10374424,108400.0,108390.0,1.38168548]
[1749492580947,2.10334424,108400.0,108390.0,1.38168548]
[1749492581254,2.10374424,108400.0,108390.0,1.38168548]
[1749492581557,2.10374424,108400.0,108390.0,1.52524991]
[1749492581849,2.10374424,108400.0,108390.0,1.32416188]
[1749492582046,1.57758424,108400.0,108390.0,1.32416188]
[1749492582257,2.10374424,108400.0,108390.0,1.32416188]
[1749492582958,2.52588205,108400.0,108390.0,1.38987188]
[1749492583150,2.52588205,108400.0,108390.0,1.11528843]
[1749492583151,2.58878205,108400.0,108390.0,1.11528843]
[1749492583345,2.12117726,108400.0,108390.0,1.36832188]
[1749492583546,2.09037726,108400.0,108390.0,1.43842188]
[1749492583841,1.63235726,108400.0,108390.0,1.43842188]
[1749492584043,2.05827726,108400.0,108390.0,1.43842188]
[1749492584341,1.53215726,108400.0,108390.0,1.43842188]
[1749492584545,1.95767726,108400.0,108390.0,1.43842188]
[1749492584754,1.95807726,108400.0,108390.0,1.43842188]
[1749492585350,1.93132,108400.0,108390.0,1.43842188]
[1749492586153,1.5054,108400.0,108390.0,1.64940533]
[1749492586351,1.93092,108400.0,108390.0,1.64940533]
[1749492586545,1.93132,108400.0,108390.0,1.63950991]
[1749492586759,1.93132,108400.0,108390.0,1.43842188]
[1749492587154,1.93132,108400.0,108390.0,1.64940533]
[1749492587454,1.93092,108400.0,108390.0,1.67153475]
[1749492587755,1.93132,108400.0,108390.0,1.4606932]
[1749492588462,1.93132,108400.0,108390.0,1.67153475]
[1749492589166,1.93132,108400.0,108390.0,1.74450063]
[1749492591356,1.93132,108400.0,108390.0,1.80202423]
[1749492592262,1.93132,108400.0,108390.0,1.94524619]
[1749492593075,1.93132,108400.0,108390.0,1.80202423]
[1749492593666,1.93132,108400.0,108390.0,1.94524682]
[1749492594170,1.93132,108400.0,108390.0,1.74415879]
[1749492594565,0.04397204,108440.0,108390.0,3.13757665]
[1749492594766,0.02125146,108450.0,108440.0,0.184329]
[1749492594967,1.54175129,108450.0,108440.0,0.75597055]
[1749492595174,1.91440501,108450.0,108440.0,0.576029]
[1749492595367,2.47264501,108450.0,108440.0,0.184329]
[1749492595668,2.29260346,108450.0,108440.0,0.184329]
[1749492596062,2.86424501,108450.0,108440.0,0.184329]
[1749492596261,1.02642955,108450.0,108440.0,0.184329]
[1749492596468,0.815588,108450.0,108440.0,0.184329]
[1749492596669,0.289548,108450.0,108440.0,0.562519]
[1749492596880,0.289148,108450.0,108440.0,0.77336055]
[1749492597071,0.815508,108450.0,108440.0,0.77336055]
[1749492597271,0.815508,108450.0,108440.0,0.562519]
[1749492598076,0.289548,108450.0,108440.0,0.562519]
[1749492598273,0.815468,108450.0,108440.0,0.562519]
[1749492598473,0.815068,108450.0,108440.0,0.562519]
[1749492598680,0.815468,108450.0,108440.0,0.562519]
[1749492599770,0.289548,108450.0,108440.0,0.562519]
[1749492599975,0.815468,108450.0,108440.0,0.562519]
[1749492600377,0.389708,108450.0,108440.0,0.562519]
[1749492600573,0.815428,108450.0,108440.0,0.595819]
[1749492600880,1.02586955,108450.0,108440.0,0.562519]
[1749492601273,0.815428,108450.0,108440.0,0.562519]
[1749492603579,0.52189165,108460.0,108450.0,0.184312]
[1749492603771,0.0008,108480.0,108470.0,0.184278]
[1749492604073,0.99201579,108490.0,108480.0,0.184261]
[1749492604284,0.184261,108480.0,108470.0,0.41587]
[1749492604470,0.95656255,108480.0,108470.0,0.2764012]
[1749492604670,1.38136255,108480.0,108470.0,0.1842688]
[1749492604871,0.85260255,108480.0,108470.0,0.1842688]
[1749492605078,1.108481,108480.0,108470.0,0.1842688]
[1749492605278,0.715181,108480.0,108470.0,0.42672045]
[1749492605476,1.684661,108480.0,108470.0,0.81892045]
[1749492605672,1.6846619,108480.0,108470.0,0.81892045]
[1749492605977,1.89510345,108480.0,108470.0,0.2472789]
[1749492606178,2.2484419,108480.0,108470.0,0.2472789]
[1749492606477,2.52198345,108480.0,108470.0,0.1842789]
[1749492606676,2.52198345,108480.0,108470.0,0.1980989]
[1749492607182,1.5004,108480.0,108470.0,0.76974045]
[1749492607381,1.5,108480.0,108470.0,0.83244045]
[1749492607575,1.5004,108480.0,108470.0,0.83244045]
[1749492608170,2.03256,108480.0,108470.0,0.83244045]
[1749492608875,2.03256,108480.0,108470.0,0.87445045]
[1749492609786,0.53256,108480.0,108470.0,0.87445045]
[1749492610289,2.03256,108480.0,108470.0,0.87445045]
[1749492611086,2.2168221,108480.0,108470.0,0.6681989]
[1749492611285,2.2168221,108480.0,108470.0,0.87904045]
[1749492611485,2.78846365,108480.0,108470.0,0.2757989]
[1749492611785,2.6077221,108480.0,108470.0,0.2757989]
[1749492611987,2.2469221,108480.0,108470.0,0.48664045]
[1749492612185,2.2469221,108480.0,108470.0,0.51824045]
[1749492613376,2.2783221,108480.0,108470.0,0.3073989]
[1749492613583,2.84996365,108480.0,108470.0,0.06042]
[1749492613778,2.84996365,108480.0,108470.0,0.244699]
[1749492613779,2.88266365,108480.0,108470.0,0.244699]
[1749492613987,2.52186365,108480.0,108470.0,0.244699]
[1749492614187,2.88266365,108480.0,108470.0,0.244699]
[1749492614686,2.6718221,108480.0,108470.0,0.244699]
[1749492614984,2.88266365,108480.0,108470.0,0.06042]
[1749492615487,1.38266365,108480.0,108470.0,0.06042]
[1749492615987,0.85130365,108480.0,108470.0,0.06042]
[1749492616189,1.38274365,108480.0,108470.0,0.06042]
[1749492616383,1.38274365,108480.0,108470.0,0.244699]
[1749492616781,1.02194365,108480.0,108470.0,0.244699]
[1749492617281,0.49050365,108480.0,108470.0,0.244699]
[1749492617483,0.8109021,108480.0,108470.0,0.244699]
[1749492617991,1.1717021,108480.0,108470.0,0.244699]
[1749492618185,1.1713021,108480.0,108470.0,0.244699]
[1749492618485,1.38254365,108480.0,108470.0,0.06042]
[1749492618684,1.02174365,108480.0,108470.0,0.06042]
[1749492618990,1.02174365,108480.0,108470.0,0.244699]
[1749492619488,1.02174365,108480.0,108470.0,0.296529]
[1749492619694,1.38254365,108480.0,108470.0,0.11225]
[1749492619890,1.38254365,108480.0,108470.0,0.296529]
[1749492620991,1.1717021,108480.0,108470.0,0.296529]
[1749492621895,0.2792621,108480.0,108470.0,0.296529]
[1749492622085,1.1713821,108480.0,108470.0,0.296529]
[1749492622486,1.1709821,108480.0,108470.0,0.296529]
[1749492622788,1.1713821,108480.0,108470.0,0.296529]
[1749492625796,1.21105974,108480.0,108470.0,0.296529]
[1749492626388,1.21105759,108480.0,108470.0,0.296529]
[1749492627197,1.21053759,108480.0,108470.0,0.296529]
[1749492627595,1.38170365,108480.0,108470.0,0.11225]
[1749492627910,0.1843128,108450.0,108440.0,0.14614533]
[1749492628196,0.7151928,108450.0,108440.0,0.1843277]
[1749492628391,0.8112928,108450.0,108440.0,0.1843277]
[1749492628591,0.1843298,108440.0,108430.0,1.07077728]
[1749492628788,0.7463706,108450.0,108440.0,0.1843298]
[1749492628992,1.31719789,108450.0,108440.0,0.42627135]
[1749492629193,1.27749614,108450.0,108440.0,0.44366135]
[1749492629394,1.31059614,108450.0,108440.0,0.44366135]
[1749492630191,1.31059614,108450.0,108440.0,0.41256135]
[1749492630392,1.31059614,108450.0,108440.0,0.2017198]
[1749492630595,1.28759614,108450.0,108440.0,0.2017198]
[1749492631491,1.28759614,108450.0,108440.0,0.2017197]
[1749492631492,1.49843769,108450.0,108440.0,0.2017197]
[1749492632105,1.28759614,108450.0,108440.0,0.2017197]
[1749492633702,1.28759614,108450.0,108440.0,0.2350197]
[1749492634301,0.34967424,108450.0,108440.0,0.2350197]
[1749492634504,0.87327424,108450.0,108440.0,0.44586125]
[1749492634705,0.87327424,108450.0,108440.0,0.47766125]
[1749492635100,0.87327424,108450.0,108440.0,0.2668197]
[1749492641506,0.87327424,108450.0,108440.0,0.2350194]
[1749492641809,0.90337424,108450.0,108440.0,0.2350194]
[1749492642405,1.11421579,108450.0,108440.0,0.2350194]
[1749492643804,0.87327424,108450.0,108440.0,0.2350194]
[1749492644909,0.87327424,108450.0,108440.0,0.2662194]
[1749492647106,0.80937424,108450.0,108440.0,0.2662194]
[1749492650110,0.84127424,108450.0,108440.0,0.2662194]
[1749492650812,0.84127424,108450.0,108440.0,0.2350194]
[1749492651918,0.84127424,108450.0,108440.0,0.34906473]
[1749492652315,0.84127424,108450.0,108440.0,0.2350194]
[1749492652702,0.84127424,108450.0,108440.0,0.34906473]
[1749492653307,8.554e-05,108450.0,108440.0,0.47796095]
[1749492653606,0.71499814,108450.0,108440.0,0.47796095]
[1749492654515,0.71539814,108450.0,108440.0,0.47796095]
[1749492654706,0.18479814,108450.0,108440.0,0.59200628]
[1749492654910,8.554e-05,108450.0,108440.0,0.95280628]
[1749492655211,0.42852554,108450.0,108440.0,0.98198354]
[1749492655614,1.92852554,108450.0,108440.0,1.18305088]
[1749492655817,1.92852554,108450.0,108440.0,1.03984898]
[1749492656110,1.92812554,108450.0,108440.0,1.03984898]
[1749492656315,1.92852554,108450.0,108440.0,1.03984898]
[1749492656911,1.92852554,108450.0,108440.0,0.98205063]
[1749492656912,1.92792,108450.0,108440.0,0.98205063]
[1749492657111,0.10265684,108460.0,108450.0,0.1843126]
[1749492657311,0.53057684,108460.0,108450.0,0.9940223]
[1749492657617,0.00053684,108460.0,108450.0,1.19511033]
[1749492657809,0.42841684,108460.0,108450.0,1.19511033]
[1749492658008,1.92801684,108460.0,108450.0,0.9940223]
[1749492658210,1.92845684,108460.0,108450.0,1.20486385]
[1749492658611,1.50053684,108460.0,108450.0,1.40592245]
[1749492658811,0.00053684,108460.0,108450.0,1.40592245]
[1749492659012,0.00013684,108460.0,108450.0,1.26268373]
[1749492659210,1.50013684,108460.0,108450.0,1.26268373]
[1749492659405,0.18748458,108490.0,108470.0,0.1842786]
[1749492659610,0.47426458,108490.0,108480.0,0.45750315]
[1749492659805,0.90210458,108490.0,108480.0,0.39362569]
[1749492660010,0.90210458,108490.0,108480.0,0.41100569]
[1749492660213,0.90250458,108490.0,108480.0,0.41100569]
[1749492660510,0.90246458,108490.0,108480.0,0.41100569]
[1749492660711,0.90246458,108490.0,108480.0,0.2964416]
[1749492661419,0.90234458,108490.0,108480.0,0.2964416]
[1749492661621,0.85632038,108490.0,108480.0,0.50728315]
[1749492662020,0.85588038,108490.0,108480.0,0.50728315]
[1749492662211,0.85628038,108490.0,108480.0,0.6572416]
[1749492663317,0.09575918,108490.0,108480.0,0.86808315]
[1749492663619,1.02108533,108490.0,108480.0,0.6572416]
[1749492664922,0.49084533,108490.0,108480.0,0.6572416]
[1749492665122,0.49084533,108490.0,108480.0,0.2964416]
[1749492665323,1.38084533,108490.0,108480.0,0.04978]
[1749492665622,1.38084533,108490.0,108480.0,0.01738]
[1749492665623,1.47744961,108490.0,108480.0,0.01738]
[1749492666018,1.11664961,108490.0,108480.0,0.2016416]
[1749492666324,1.47744961,108490.0,108480.0,0.2327416]
[1749492666514,1.47704961,108490.0,108480.0,0.2327416]
[1749492666714,1.47744961,108490.0,108480.0,0.2327416]
[1749492670724,0.85324961,108490.0,108480.0,0.2327416]
[1749492670924,1.38144961,108490.0,108480.0,0.2955416]
[1749492671326,1.38184961,108490.0,108480.0,0.2955416]
[1749492671727,1.41434961,108490.0,108480.0,0.2955416]
[1749492672832,0.64240806,108490.0,108480.0,0.2955416]
[1749492673129,1.38016533,108490.0,108480.0,0.2955416]
[1749492673524,1.41266533,108490.0,108480.0,0.2955416]
[1749492673731,0.88414533,108490.0,108480.0,0.2955416]
[1749492674124,1.41254533,108490.0,108480.0,0.2955416]
[1749492674323,0.67330378,108490.0,108480.0,0.2955416]
[1749492674522,1.37960533,108490.0,108480.0,0.2955416]
[1749492674723,1.38000533,108490.0,108480.0,0.2955416]
[1749492676926,0.45655918,108490.0,108480.0,0.2955416]
[1749492677131,2.30844328,108490.0,108480.0,0.2955416]
[1749492677928,2.30804328,108490.0,108480.0,0.2955416]
[1749492678231,2.30844328,108490.0,108480.0,0.2955416]
[1749492678432,2.51928483,108490.0,108480.0,0.2955416]
[1749492678831,2.30832328,108490.0,108480.0,0.2955416]
[1749492679335,2.51916483,108490.0,108480.0,0.2955416]
[1749492681735,2.54976483,108490.0,108480.0,0.2955416]
[1749492683228,1.41056483,108490.0,108480.0,0.01738]
[1749492683437,1.44356483,108490.0,108480.0,0.2016411]
[1749492683638,1.48363423,108490.0,108480.0,0.01738]
[1749492685627,1.48363423,108490.0,108480.0,0.2016411]
[1749492685831,1.48363423,108490.0,108480.0,0.01738]
[1749492687239,1.52673458,108490.0,108480.0,0.01738]
[1749492689328,1.52833889,108490.0,108480.0,0.01738]
[1749492694342,1.48523854,108490.0,108480.0,0.01738]
[1749492695234,0.1842611,108480.0,108470.0,0.03693829]
[1749492695441,0.81980265,108480.0,108470.0,0.03693829]
[1749492695746,0.85979461,108480.0,108470.0,0.03693829]
[1749492696035,0.81980265,108480.0,108470.0,0.03693829]
[1749492696932,0.81980265,108480.0,108470.0,0.03233829]
[1749492697433,1.07063076,108480.0,108470.0,0.00013829]
[1749492697730,1.07063076,108480.0,108460.0,0.01382]
[1749492697731,0.1842779,108470.0,108460.0,0.01382]
[1749492697929,0.1842949,108460.0,108450.0,0.0321]
[1749492698128,0.81983645,108460.0,108450.0,0.0321]
[1749492698338,0.85982502,108460.0,108450.0,0.0321]
[1749492698540,0.85073645,108460.0,108450.0,0.0321]
[1749492698735,0.89070344,108460.0,108450.0,0.0321]
[1749492699437,1.01657645,108460.0,108450.0,0.0321]
[1749492699641,0.98563645,108460.0,108450.0,0.2164119]
[1749492699845,0.98563645,108460.0,108450.0,0.0321]
[1749492700039,0.98563645,108460.0,108450.0,0.2471119]
[1749492700543,0.39513645,108460.0,108450.0,0.6079119]
[1749492700840,0.7108549,108460.0,108450.0,0.6079119]
[1749492701037,0.7112549,108460.0,108450.0,0.6079119]
[1749492701243,0.7112549,108460.0,108450.0,0.2471119]
[1749492702241,0.89080155,108460.0,108440.0,0.36554829]
[1749492702539,0.89080155,108460.0,108400.0,0.28696187]
[1749492702540,0.0921855,108420.0,108400.0,0.28696187]
[1749492702736,0.0921855,108420.0,108360.0,1.07676157]
[1749492702737,0.0461133,108370.0,108350.0,0.84835925]
[1749492702937,0.48751745,108370.0,108360.0,0.0633]
[1749492703238,1.32688508,108370.0,108360.0,0.07609269]
[1749492703443,1.31789357,108370.0,108360.0,0.07615669]
[1749492703638,1.31789357,108370.0,108360.0,0.0633]
[1749492703836,1.31197198,108370.0,108360.0,0.07624533]
[1749492704038,1.31197198,108370.0,108360.0,0.0938]
[1749492704342,1.31197198,108370.0,108360.0,0.29522586]
[1749492704740,1.31197198,108370.0,108360.0,0.29500507]
[1749492705541,1.31197198,108370.0,108360.0,0.0978]
[1749492705737,1.31197198,108370.0,108360.0,0.004]
[1749492705948,1.6844634,108360.0,108350.0,0.03163829]
[1749492706144,2.41503774,108360.0,108350.0,0.00013829]
[1749492706339,2.44183774,108360.0,108350.0,0.00013829]
[1749492706646,1.5,108360.0,108350.0,0.18461869]
[1749492706947,0.80450575,108360.0,108350.0,0.24611869]
[1749492707146,1.16530575,108360.0,108350.0,0.24611869]
[1749492707550,0.80450575,108360.0,108350.0,0.24911869]
[1749492708143,0.25914575,108360.0,108350.0,0.24911869]
[1749492708337,0.25914715,108360.0,108350.0,0.24911869]
[1749492708544,0.69722715,108360.0,108350.0,0.24911869]
[1749492708744,0.69762715,108360.0,108350.0,0.24911869]
[1749492709348,0.07468235,108360.0,108350.0,0.24911869]
[1749492709545,7.3e-05,108370.0,108350.0,0.63776063]
[1749492709738,1.21453904,108360.0,108350.0,0.03463829]
[1749492709943,1.32141904,108360.0,108350.0,0.03463829]
[1749492710139,1.34821904,108360.0,108350.0,0.03463829]
[1749492710339,1.1173847,108360.0,108350.0,0.03463829]
[1749492710551,1.34821904,108360.0,108350.0,0.21612009]
[1749492711339,0.44008,108360.0,108350.0,0.21612009]
[1749492711849,0.43968,108360.0,108350.0,0.21612009]
[1749492712041,0.6241448,108360.0,108350.0,0.21612009]
[1749492712238,0.43968,108360.0,108350.0,0.21612009]
[1749492712439,0.6241047,108360.0,108350.0,0.21612009]
[1749492712644,0.6245047,108360.0,108350.0,0.21612009]
[1749492713048,0.6241047,108360.0,108350.0,0.21612009]
[1749492713247,0.1858647,108360.0,108350.0,0.21612009]
[1749492713451,0.6243847,108360.0,108350.0,0.21612009]
[1749492713642,0.0014,108360.0,108350.0,0.21612009]
[1749492713848,0.230646,108370.0,108360.0,0.1844648]
[1749492714049,0.669086,108370.0,108360.0,0.2483648]
[1749492714251,0.230646,108370.0,108360.0,0.2483648]
[1749492714553,0.669006,108370.0,108360.0,0.2483648]
[1749492715552,0.230646,108370.0,108360.0,0.2483648]
[1749492715752,7.3e-05,108370.0,108360.0,0.6091648]
[1749492715959,0.438593,108370.0,108360.0,0.6091648]
[1749492716148,1.938593,108370.0,108360.0,0.6091648]
[1749492716349,1.500473,108370.0,108360.0,0.6091648]
[1749492716544,1.938553,108370.0,108360.0,0.6091648]
[1749492716749,2.1230007,108370.0,108360.0,0.6091648]
[1749492716957,1.938553,108370.0,108360.0,0.6091648]
[1749492717157,1.500473,108370.0,108360.0,0.6091648]
[1749492717343,1.500073,108370.0,108360.0,0.6091648]
[1749492717551,1.938033,108370.0,108360.0,0.6091648]
[1749492717758,1.938433,108370.0,108360.0,0.6091648]
[1749492718056,2.1227607,108370.0,108360.0,0.6218463]
[1749492718251,2.1227607,108370.0,108360.0,0.26104688]
[1749492718458,2.71439504,108370.0,108360.0,0.26106447]
[1749492718653,2.71439504,108370.0,108360.0,0.26113831]
[1749492718851,2.73134139,108370.0,108360.0,0.23013831]
[1749492719048,2.53260705,108370.0,108360.0,0.23013831]
[1749492719253,2.76344139,108370.0,108360.0,0.23013831]
[1749492719453,2.76344139,108370.0,108360.0,0.2173648]
[1749492719654,2.76344139,108370.0,108360.0,0.04581077]
[1749492719856,2.76344139,108370.0,108360.0,0.01291077]
[1749492720058,0.1844648,108360.0,108350.0,0.38786109]
[1749492720260,0.87698419,108360.0,108350.0,0.40105029]
[1749492720771,0.87698419,108360.0,108350.0,0.38786109]
[1749492721067,0.87698419,108360.0,108350.0,0.26270147]
[1749492721258,0.90868419,108360.0,108350.0,0.26270146]
[1749492721454,0.90868419,108360.0,108350.0,0.21630719]
[1749492721658,0.90868419,108360.0,108350.0,0.04504705]
[1749492721866,1.17171853,108360.0,108350.0,0.03183829]
[1749492722170,0.94088419,108360.0,108350.0,0.22964705]
[1749492722464,0.94088419,108360.0,108350.0,0.21732009]
[1749492722670,0.94088419,108360.0,108350.0,0.2306421]
[1749492722860,0.94088419,108360.0,108350.0,0.21732009]
[1749492723363,0.94088419,108360.0,108350.0,0.23065221]
[1749492723563,0.94088419,108360.0,108350.0,0.2306522]
[1749492723765,0.94088419,108360.0,108350.0,0.23050067]
[1749492724670,0.94088419,108360.0,108350.0,0.19880067]
[1749492724869,0.94088419,108360.0,108350.0,0.19875796]
[1749492725171,1.17171853,108360.0,108350.0,0.00113829]
[1749492725358,1.17171853,108360.0,108350.0,0.19895831]
[1749492725359,0.94088419,108360.0,108350.0,0.19895831]
[1749492725862,0.94088419,108360.0,108350.0,0.01447651]
[1749492726263,0.97148419,108360.0,108350.0,0.01447651]
[1749492726467,1.20231853,108360.0,108350.0,0.01447651]
[1749492726771,0.97148419,108360.0,108350.0,0.1989848]
[1749492726963,0.97148419,108360.0,108350.0,0.19897634]
[1749492727158,0.97148419,108360.0,108350.0,0.18562009]
[1749492727367,1.01636308,108360.0,108350.0,0.19897435]
[1749492727566,0.83769064,108360.0,108350.0,0.18562009]
[1749492727876,1.38538724,108360.0,108350.0,0.01449951]
[1749492728177,1.56998724,108360.0,108350.0,0.01449951]
[1749492728478,1.56998724,108360.0,108350.0,0.00113829]
[1749492728779,1.56585064,108360.0,108350.0,0.01445301]
[1749492729075,1.02229064,108360.0,108350.0,0.19893481]
[1749492729272,1.02229064,108360.0,108350.0,0.23103481]
[1749492729474,1.56573064,108360.0,108350.0,0.23103481]
[1749492729978,1.56573064,108360.0,108350.0,0.23097004]
[1749492730176,1.56573064,108360.0,108350.0,0.04649441]
[1749492730482,1.56573064,108360.0,108330.0,0.3088646]
[1749492730483,0.1844988,108340.0,108330.0,0.3088646]
[1749492730778,1.36429203,108340.0,108330.0,0.3412646]
[1749492731176,1.72509203,108340.0,108330.0,0.3412646]
[1749492731379,1.72509203,108340.0,108330.0,0.2490092]
[1749492731572,1.79877712,108340.0,108330.0,0.0321]
[1749492731772,0.1845159,108330.0,108320.0,0.06171431]
[1749492731973,0.44223825,108330.0,108320.0,0.24624461]
[1749492732169,0.80303825,108330.0,108320.0,0.24624461]
[1749492732585,0.97565896,108330.0,108320.0,0.24624461]
[1749492733083,0.97565896,108330.0,108320.0,0.21724721]
[1749492733278,1.04115896,108330.0,108320.0,0.03271431]
[1749492733580,1.08368928,108330.0,108320.0,0.00221431]
[1749492734383,0.1845499,108310.0,108300.0,0.3839766]
[1749492734582,1.36278313,108310.0,108300.0,0.38323532]
[1749492734972,1.00198313,108310.0,108300.0,0.41493532]
[1749492735178,1.36278313,108310.0,108300.0,0.41493532]
[1749492735985,1.32378313,108310.0,108300.0,0.41493532]
[1749492737683,1.31478777,108310.0,108300.0,0.41493532]
[1749492737885,0.40567889,108310.0,108300.0,0.41493532]
[1749492738078,0.04487889,108310.0,108300.0,1.00656966]
[1749492738282,0.48047889,108310.0,108300.0,1.00656966]
[1749492738479,0.46649829,108320.0,108310.0,0.1845498]
[1749492738683,1.12907822,108320.0,108310.0,0.2509498]
[1749492738885,0.76939014,108320.0,108310.0,0.2509498]
[1749492739283,0.58485704,108320.0,108310.0,0.2509498]
[1749492739487,0.72591109,108320.0,108310.0,0.2509498]
[1749492739687,0.14930521,108320.0,108310.0,0.48178414]
[1749492739888,0.72583109,108320.0,108310.0,0.48178414]
[1749492740091,0.72623109,108320.0,108310.0,0.48178414]
[1749492740292,0.72623109,108320.0,108310.0,0.2509498]
[1749492741092,0.00053829,108320.0,108310.0,0.84258414]
[1749492741292,0.00153829,108320.0,108310.0,0.84258414]
[1749492741493,0.43661829,108320.0,108310.0,0.84258414]
[1749492741792,0.43701829,108320.0,108310.0,0.84258414]
[1749492741986,0.00153829,108320.0,108310.0,0.84258414]
[1749492742389,0.43649829,108320.0,108310.0,0.84258414]
[1749492742586,0.43689829,108320.0,108310.0,0.84258414]
[1749492742786,0.0363303,108330.0,108320.0,0.1845328]
[1749492742986,0.10566011,108340.0,108330.0,0.1845158]
[1749492743285,0.00010011,108340.0,108330.0,0.83925014]
[1749492743496,0.12397634,108360.0,108350.0,0.1844817]
[1749492743698,0.78643677,108360.0,108350.0,0.1844817]
[1749492743896,0.78643677,108360.0,108350.0,0.2486817]
[1749492744191,0.16709207,108360.0,108350.0,0.2486817]
[1749492744394,0.63458747,108370.0,108360.0,0.1844647]
[1749492744599,0.14848999,108370.0,108360.0,0.2486647]
[1749492744895,0.78590691,108370.0,108360.0,0.2486647]
[1749492745097,0.78630691,108370.0,108360.0,0.2486647]
[1749492745394,1.37794125,108370.0,108360.0,0.2486647]
[1749492745598,1.44214125,108370.0,108360.0,0.2486647]
[1749492745897,1.44614125,108370.0,108360.0,0.2486647]
[1749492746491,1.15110691,108370.0,108360.0,0.2486647]